Cogmind - Beta 15 @@@ ROGUE MODE // 2025.06.22 @ 05:09:09 Player: CL-1C0 Result: Destroyed by D-53 Grenadier with Mini Grenade Launcher Performance ------------- Evolutions (0) 0 Regions Visited (2) 400 Robots Destroyed (2) 10 Value Destroyed (55) 55 Prototype IDs (0) 0 Alien Tech Used (0) 0 Bonus (0) 0 TOTAL SCORE: 465 Bonus ------- None Cogmind --------- Core Integrity 0/250 Matter 329/500 Energy 99/100 System Corruption 0% Temperature Cool (0) Movement Core (200) Ox3 Location -10/Mines Parts ------- > --- POWER (1) -------- (None) > --- PROPULSION (2) --- (None) > --- UTILITY (2) ------ Small Storage Unit High-capacity Matter Pod > --- WEAPON (2) ------- Light Assault Rifle > --- INVENTORY (8) ---- Ion Engine Light Treads Compact Wheel Compact Wheel Transport Network Coupler Light Assault Rifle Datajack Mining Laser Peak State ------------ > --- POWER ------------ Light Ion Engine > --- PROPULSION ------- Aluminum Leg Aluminum Leg > --- UTILITY ---------- Small Storage Unit High-capacity Matter Pod > --- WEAPON ----------- Small Laser Light Assault Rifle > --- INVENTORY -------- Ion Engine Light Treads Light Treads Light Treads Compact Wheel Compact Wheel Light Assault Rifle Datajack [Rating: 7] Favorites ----------- Power Light Ion Engine Engine Light Ion Engine Propulsion Light Treads Treads Light Treads Leg Aluminum Leg Utility Small Storage Unit Storage Small Storage Unit Weapon Light Assault Rifle Energy Gun Small Laser Ballistic Gun Light Assault Rifle Build | -11 -10 -10 ------- Run | Yrd Mat Min Slots Evolved . | . . . Power . | . . . Propulsion . | . . . Utility . | . . . Weapon . | . . . Parts Attached 3 | . 3 . Power . | . . . Engine . | . . . Core . | . . . Reactor . | . . . Propulsion 2 | . 2 . Treads 2 | . 2 . Leg . | . . . Wheel . | . . . Hover . | . . . Flight . | . . . Utility 1 | . 1 . Device . | . . . Storage 1 | . 1 . Processor . | . . . Hackware . | . . . Protection . | . . . Artifact . | . . . Weapon . | . . . Energy Gun . | . . . Energy Cannon . | . . . Ballistic Gun . | . . . Ballistic Cannon . | . . . Launcher . | . . . Special Weapon . | . . . Impact Weapon . | . . . Slashing Weapon . | . . . Piercing Weapon . | . . . Special Melee Weapon . | . . . Unidentified Prototypes . | . . . Parts Lost 4 | . . 4 Power 1 | . . 1 Propulsion 2 | . . 2 Utility . | . . . Weapon 1 | . . 1 Highest Loss Streak 4 | . . 4 To Critical Strikes . | . . . Average Backups 7 | . 7 8 Power 1 | . 1 1 Propulsion 3 | . 3 3 Utility . | . . 1 Weapon 1 | . 1 2 Tool/Special . | . . . Unused Backups 15 | . 6 9 Power 3 | . 1 2 Propulsion 5 | . 2 3 Utility 2 | . 1 1 Weapon 4 | . 2 2 Tool/Special 1 | . . 1 Average Slot Usage (%) 92 | . 93 88 Engine 12 | . 14 8 Treads 16 | . 14 22 Leg 10 | . 13 . Storage 23 | . 22 28 Energy Gun 14 | . 14 14 Ballistic Gun 14 | . 14 14 Peak Build Rating 7 | . 7 7 Average Rating 6 | . 6 6 On Entrance 6 | 6 6 7 Naked Turns . | . . . Heaviest Build 14 | 10 14 14 Greatest Support 40 | 20 40 40 Greatest Overweight (x) 3 | . . 3 Average Overweight (x) . | . . . Largest Inventory Capacity 8 | . 8 8 Average Capacity 8 | . 8 8 Most Carried 8 | . 8 8 Average Carried 7 | . 7 8 Final Capacity 8 | 8 8 8 Final Carried 8 | 6 8 8 Class Distribution -------------------- 100% | Mutant Dominant Class ---------------- Mutant | -10/Materials Mutant | -10/Mines Resources | -11 -10 -10 ----------- Run | Yrd Mat Min Matter Collected 245 | 200 45 . Remotely . | . . . Salvage Created 43 | . 43 . Parts 3 | . 3 . Haulers Intercepted 1 | . 1 . Recyclers Shooed . | . . . Parts Field Recycled . | . . . Retrieved Matter . | . . . Parts Self-Destructed . | . . . Prevented . | . . . Kills | -11 -10 -10 ------- Run | Yrd Mat Min Combat Hostiles Destroyed 1 | . . 1 Guns 1 | . . 1 Classes Destroyed 2 | . 1 1 Hauler 1 | . 1 . Demolisher 1 | . . 1 Best Kill Streak 1 | . 1 1 Combat Bots Only 1 | . . 1 Max Kills in Single Turn 1 | . 1 1 Gunslinging . | . . . Exploded . | . . . Melee . | . . . Uniques/NPCs Destroyed . | . . . Combat | -11 -10 -10 -------- Run | Yrd Mat Min Hostile Shots Fired 19 | . . 19 Missed . | . . . Hits 19 | . . 19 Projectile 19 | . . 19 AOE 19 | . . 19 Damage Taken 756 | . . 756 Core 255 | . . 255 Absorbed by Shields . | . . . Core Remaining (%) 100 | 100 . . Volleys Fired 6 | . 2 4 Largest 2 | . 2 2 Hottest 60 | . 60 60 Shots Fired 10 | . 4 6 Gun 10 | . 4 6 Cannon . | . . . Launcher . | . . . Special . | . . . Kinetic 6 | . 2 4 Thermal 4 | . 2 2 Explosive . | . . . Electromagnetic . | . . . Robot Hit Streak 8 | . 3 8 Robot Miss Streak 1 | . 1 1 Penetration Max . | . . . Secondary Targets . | . . . Shots Hit Robots 8 | . 3 5 Core Hits 5 | . 2 3 Critical Kills . | . . . Critical Parts Destroyed . | . . . Critical Strikes . | . . . Melee Attacks . | . . . Impact . | . . . Slashing . | . . . Piercing . | . . . Sneak Attacks . | . . . Combat Hostiles . | . . . Follow-up Attacks . | . . . Damage Inflicted 71 | . 26 45 Guns 71 | . 26 45 Cannons . | . . . Explosions . | . . . Melee . | . . . Ramming . | . . . Kinetic 38 | . 16 22 Thermal 33 | . 10 23 Explosive . | . . . Electromagnetic . | . . . Impact . | . . . Slashing . | . . . Piercing . | . . . Highest Corruption . | . . . Average Corruption . | . . . Corruption Purged . | . . . Corruption Blocked . | . . . Overload Shots . | . . . Overflow Damage . | . . . Projectiles . | . . . Explosions . | . . . Melee . | . . . Knockbacks . | . . . Impact . | . . . Kinetic . | . . . Secondary . | . . . Self-Inflicted Damage . | . . . Shots . | . . . Rammed . | . . . Targets Rammed . | . . . Kicked . | . . . Crushed . | . . . Highest Temperature 20 | . 20 10 Average Temperature 11 | . 15 7 Received Heat Transfer . | . . . Siege Activations . | . . . Martial Activations . | . . . Shielding Activations . | . . . Robots Disrupted . | . . . Combat Hostiles . | . . . Robots Corrupted . | . . . Combat Hostiles . | . . . Parts Fried . | . . . Impact Corruptions . | . . . Robots Melted . | . . . Combat Hostiles . | . . . Parts Melted . | . . . Heat Transferred 75 | . 25 50 Parts Sabotaged . | . . . Parts Stolen . | . . . Parts Stripped . | . . . Power Chain Reactions . | . . . Alert | -11 -10 -10 ------- Run | Yrd Mat Min Maximum Alert Level . | . . . Low Security (%) 100 | . 100 100 Level 1 . | . . . Level 2 . | . . . Level 3 . | . . . Level 4 . | . . . Level 5 . | . . . High Security . | . . . Max Security . | . . . Peak Influence 51 | . 51 20 Initial . | . . . Average 13 | . 15 2 Influence Increases 101 | . 71 30 Destroy 0b10 Robot/C 20 | . . 20 Destroy 0b10 Robot/NC 5 | . 5 . Destroy Leader 12 | . 2 10 Successful Hack 34 | . 34 . Select Force Hacks 30 | . 30 . Influence Decreases 91 | . 70 21 Entered New Map 1 | . . 1 Time Decay 80 | . 70 10 Lost Part 10 | . . 10 Squads Dispatched 1 | . 1 . Investigation 1 | . 1 . Extermination . | . . . Reinforcement . | . . . Assault . | . . . Garrison . | . . . Intercept . | . . . Searches Triggered . | . . . Construction Impeded . | . . . Haulers Reinforced . | . . . Active Scanning Responses . | . . . Cargo Convoy Interrupts . | . . . Stealth | -11 -10 -10 --------- Run | Yrd Mat Min Distress Signals . | . . . Communications Jammed . | . . . Distress Signals . | . . . Times Spotted 3 | . 1 2 Peak Tracking Total 2 | . 1 2 Tactical Retreats . | . . . Traps | -11 -10 -10 ------- Run | Yrd Mat Min Traps Triggered . | . . . Indirectly . | . . . Trap Hack Attempts . | . . . Triggered . | . . . Disarmed . | . . . Reprogrammed . | . . . Reused . | . . . Traps Extracted . | . . . Installed . | . . . Triggered . | . . . Machines | -11 -10 -10 ---------- Run | Yrd Mat Min Machines Disabled . | . . . Max in Single Turn . | . . . Machines Repaired . | . . . Machines Dismantled . | . . . Machines Sabotaged . | . . . Overloaded Fab Kills . | . . . Hacking | -11 -10 -10 --------- Run | Yrd Mat Min Machines Accessed 3 | . 3 . Terminals 2 | . 2 . Fabricators . | . . . Repair Stations . | . . . Recycling Units 1 | . 1 . Scanalyzers . | . . . Garrison Access . | . . . Total Hacks 4 | . 4 . Successful 3 | . 3 . Failed 1 | . 1 . Catastrophic 1 | . 1 . Database Lockouts . | . . . Manual 1 | . 1 . Terminals 3 | . 3 . Fabricators . | . . . Repair Stations . | . . . Recycling Units 1 | . 1 . Scanalyzers . | . . . Garrison Access . | . . . Terminal Hacks 2 | . 2 . Level Access Points 1 | . 1 . Branch Access Points 1 | . 1 . Fabricator Hacks . | . . . Repair Station Hacks . | . . . Recycling Unit Hacks . | . . . Scanalyzer . | . . . Garrison Access Hacks . | . . . Unauthorized Hacks 1 | . 1 . Terminals . | . . . Fabricators . | . . . Repair Stations . | . . . Recycling Units 1 | . 1 . Tunnel 1 | . 1 . Scanalyzers . | . . . Garrison Access . | . . . Data Cores Recovered . | . . . Used . | . . . Hacking Detections 1 | . 1 . Full Trace Events . | . . . Feedback Events . | . . . Feedback Blocked . | . . . Robot Schematics Acquired . | . . . Robots Built . | . . . Authchips . | . . . Time . | . . . Total Robot Build Rating . | . . . Part Schematics Acquired . | . . . Parts Built . | . . . Authchips . | . . . Time . | . . . Total Part Build Rating . | . . . Parts Repaired . | . . . Time . | . . . Parts Recycled . | . . . Recycled Matter . | . . . Retrieved Matter . | . . . Retrieved Components . | . . . Parts Scanalyzed . | . . . Part Schematics Acquired . | . . . Parts Damaged . | . . . Bothacking | -11 -10 -10 ------------ Run | Yrd Mat Min Used RIF Installer . | . . . Robots Hacked . | . . . Non-combat . | . . . Combat . | . . . Robot Hacks Applied . | . . . Relay Couplers Released . | . . . Fabnet Peak Effective % . | . . . Robots Rewired . | . . . Allies Hacked . | . . . Hacks Repelled . | . . . Allies | -11 -10 -10 -------- Run | Yrd Mat Min Total Allies . | . . . Largest Group . | . . . Highest-Rated Group . | . . . Highest-Rated Ally . | . . . Total Orders . | . . . Ally Attacks . | . . . Total Damage . | . . . Kills . | . . . Allies Corrupted . | . . . Allies Melted . | . . . Intel | -11 -10 -10 ------- Run | Yrd Mat Min Active Infowar (turns) . | . . . Robot Analysis Total . | . . . Derelict Logs Recovered . | . . . Drone Launches . | . . . Drone Recoveries . | . . . Exploration | -11 -10 -10 ------------- Run | Yrd Mat Min Turns Passed 255 | . 208 47 Spaces Moved 164 | 1 139 24 Core 1 | . . 1 Treads 94 | . 71 23 Legs 69 | 1 68 . Wheels . | . . . Hover . | . . . Flight . | . . . Fastest Speed 120 | 120 120 160 Average Speed 143 | 120 140 161 Slowest Speed 200 | 120 160 200 Overloaded Moves . | . . . Propulsion Burnouts . | . . . Robots Hopped . | . . . Potential Cave-ins . | . . . Cave-ins Triggered . | . . . Exploration Rate (%) 18 | 2 38 14 Regions Visited 2 Branch Regions 1 Pre-discovered Areas 1 | . 1 . Known Exits Taken 1 | . 1 . Unknown Exits Taken 1 | 1 . . Scrap Searched . | . . . Spaces Dug . | . . . Terrain Destroyed . | . . . Melee . | . . . Projectile . | . . . AOE . | . . . Terrain Rammed . | . . . Walls Destroyed . | . . . Machines Disabled . | . . . Actions | -11 -10 -10 --------- Run | Yrd Mat Min Total 177 | . 149 28 Wait . | . . . Move 162 | . 138 24 Hop . | . . . Pick Up 4 | . 4 . Fast Attach 1 | . 1 . Attach 2 | . 2 . Detach . | . . . Swap . | . . . Drop 2 | . 2 . Fire 6 | . 2 4 Melee . | . . . Ram . | . . . Kick . | . . . Crush . | . . . Escape Stasis . | . . . Rewire . | . . . Trap . | . . . Miscellaneous . | . . . Route ------- -11/Scrapyard -10/Materials (discovered 4 exits: Mat x3 / *Min) -10/Mines History --------- Turn | Location | Event 1 | -11/Scrapyard | Discovered new exit (range 0) 1 | -11/Scrapyard | Entered Materials 66 | -10/Materials | Identified exit to Materials 99 | -10/Materials | Identified exit to Mines 209 | -10/Materials | Entered Mines 217 | -10/Mines | Assembled infested the area 222 | -10/Mines | Assisted by a Guerilla fighting off Assembled 249 | -10/Mines | Core integrity fell below 50% 255 | -10/Mines | Core integrity fell below 20% 256 | -10/Mines | Destroyed by D-53 Grenadier with Mini Grenade Launcher Last Messages --------------- 00222_ A derelict emerges from the shadows: "You need to get out of here! I've been tracking a group of Assembled to figure out where they're coming from, and they're closing on this area, come on!" 00227_ HV Slug penetrates Wall. 00239_ Lgt. Ion Engine destroyed. 00240_ K-01 Serf collects debris. 00240_ T-07 Excavator destroyed. 00243_ K-01 Serf collects debris. 00244_ The unstable cave ceiling collapses. 00244_ Lgt. Treads destroyed. 00245_ K-01 Serf collects debris. 00246_ T-07 Excavator destroyed. 00246_ Lgt. Treads destroyed. 00246_ K-01 Serf collects debris. 00248_ D-53 Grenadier destroyed. 00251_ K-01 Serf collects debris. 00252_ Sml. Laser destroyed. 00252_ K-01 Serf destroyed. 00254_ K-01 Serf collects debris. 00256_ The unstable cave ceiling collapses. Map ----- +----------------------------------------------------+ | ???????????????????????????????????????????????? | | ???????????????????????????????????????????????? | | ???????????????????????????????????????????????? | | ???????????????????????????????????????????????? | | ???????????????????????????????????????????????? | | ????????????????????????????? ?????????????????? | | ????????????????????????????? ?????????????????? | | ????????????????????????????? ?????????????????? | | ????????????????????????????? ?????????????????? | | ????????????????????????????? ##???????????????? | | ????????????????????????????? #???????????????? | | ????????????????????????????? #???????????????? | | ????????????????????????????# ##??????????????? | | ???????????????????????????? ###????????????? | | ???????????????????????????? ##???????????? | | ???????????????????????????? ####????????? | | ???????????????????????????? #????????? | | ??????????????????????????? k ?????????? | | ????????###???????????????? #???????????? | | ????????# #####?????????# #???????????? | | ????????# #??####### #????????????? | | ????????# ### #;#????????????? | | ???????## % ####??????????? | | ?????### #??????????? | | ????## d ##?????????????? | | ???## t @ * #???????????????? | | ???# %####???????????????? | | ???# =##?????????????????? | | ???????# #?????????????????? | | ???????## # #?????????????????? | | ????????## # #?????????????????? | | ?????????### ##?????????????????? | | ???????????## # ####??????????????????? | | ????????????### ###?????????????????????? | | ??????????????## #???????????????????????? | | ???????????????#########???????????????????????? | | ???????????????????????????????????????????????? | | | | | | | | | | | | | | | | | | | | | | | | | | | +----------------------------------------------------+ Best States ------------- Heat Dissipation 25 Energy Generation 10 Energy Capacity 125 Matter Stores 327 Matter Capacity 500 Sight Range 16 Terrain Scan Density 10 Evasion (%) 55 Recoil Reduction 2 Item Schematics ----------------- None Robot Schematics ------------------ None Fabricated ------------ Nothing Repaired ---------- Nothing Alien Tech Used ----------------- None Achievements -------------- None Challenges ------------ None Game ------ Seed GravitonLegSpear Manual? 0 Play Time 00:03:10 Cumulative 552.4 hours Start 2025.06.22 @ 04:59:28 End 2025.06.22 @ 05:09:09 Sessions 1 Manual Loads 0 Difficulty Rogue Special Mode None Game No. 666 Rogue 666 Adventurer 0 Explorer 0 Win Type - Total 20 Types 14/0/5/1/0/0/0/0/0/0 Lore% 85 Gallery% 83 Achievement% 83 Wizard Run 0 Options --------- Layout 0 ASCII 0 Keyboard 0 Movement Numpad Keybinds 0 Fullscreen 1 Font 18/SmallcapsGlow Map View 76x50 Zoom Use 0% Tactical HUD 1 Map Filters NONE Filters NONE Steam 1 RUN: 4b0e8939-a6cf-49cf-bbf2-48af99f6e6b4